bitfinex-derivatives/quotes_SOLF0:USTF0_20250530
["timestamp","ask_amount","ask_price","bid_price","bid_amount"]
[1748585781626,19.4282,164.47,164.44,36.3193]
[1748585781826,19.4282,164.47,164.44,30.24]
[1748585783222,12.48,164.47,164.44,30.24]
[1748585785029,12.48,164.47,164.44,36.3193]
[1748585786729,20.09928865,164.48,164.45,6.079]
[1748585786931,20.09928865,164.48,164.44,30.24]
[1748585787424,20.09928865,164.48,164.42,0.04007477]
[1748585788028,6.0792,164.45,164.42,0.04007477]
[1748585788329,20.09928865,164.48,164.42,0.04007477]
[1748585789632,6.0793,164.45,164.42,0.04007477]
[1748585789832,20.27,164.47,164.42,0.04007477]
[1748585790331,15.2,164.46,164.42,0.04007477]
[1748585790731,27.95,164.46,164.42,0.04007477]
[1748585791427,27.95,164.46,164.38,30.36]
[1748585791635,3.65404182,164.45,164.38,30.36]
[1748585791934,6.0808,164.41,164.38,30.36]
[1748585792338,6.12098509,164.41,164.38,30.40149195]
[1748585792935,0.04018509,164.41,164.38,36.48299195]
[1748585793434,6.12068509,164.41,164.38,36.48299195]
[1748585795230,0.04018509,164.41,164.38,36.48299195]
[1748585795936,19.95,164.4,164.38,30.40149195]
[1748585796537,19.95,164.4,164.39,6.0812]
[1748585796737,19.95,164.4,164.38,30.40149195]
[1748585797128,19.95,164.4,164.38,36.48289195]
[1748585797338,19.95,164.4,164.38,30.40149195]
[1748585797538,19.95,164.4,164.38,36.48299195]
[1748585797745,19.95,164.4,164.38,30.40149195]
[1748585799029,6.0812,164.39,164.38,30.40149195]
[1748585799239,19.95,164.4,164.38,30.40149195]
[1748585800034,26.031,164.4,164.38,30.40149195]
[1748585800434,19.95,164.4,164.38,30.40149195]
[1748585802038,26.0311,164.4,164.38,30.40149195]
[1748585802240,19.95,164.4,164.38,0.04149195]
[1748585802644,6.0812,164.39,164.38,0.04149195]
[1748585804341,26.031,164.4,164.38,0.04149195]
[1748585806237,6.0812,164.39,164.38,0.04149195]
[1748585806936,19.95,164.4,164.38,0.04149195]
[1748585808539,26.0309,164.4,164.38,0.04149195]
[1748585809647,6.0812,164.39,164.38,0.04149195]
[1748585809846,19.95,164.4,164.38,0.04149195]
[1748585810739,6.0812,164.39,164.38,0.04149195]
[1748585812038,26.0309,164.4,164.38,0.04149195]
[1748585813242,6.0812,164.39,164.38,0.04149195]
[1748585813551,36.95,164.4,164.38,0.04149195]
[1748585813851,43.0311,164.4,164.38,0.04149195]
[1748585814147,36.95,164.4,164.38,0.04149195]
[1748585814649,6.0812,164.39,164.38,0.04149195]
[1748585822249,36.95,164.4,164.38,0.04149195]
[1748585823143,36.95,164.4,164.38,6.12279195]
[1748585824056,36.95,164.4,164.38,0.04149195]
[1748585825961,43.0309,164.4,164.38,0.04149195]
[1748585826961,36.95,164.4,164.38,0.04149195]
[1748585827760,43.0309,164.4,164.38,0.04149195]
[1748585828159,36.95,164.4,164.38,0.04149195]
[1748585830670,36.95,164.4,164.38,30.42149195]
[1748585831065,43.031,164.4,164.38,30.42149195]
[1748585831769,36.95,164.4,164.38,30.42149195]
[1748585833067,6.0812,164.39,164.38,30.42149195]
[1748585833868,43.0311,164.4,164.38,30.42149195]
[1748585834373,36.95,164.4,164.38,30.42149195]
[1748585835273,6.0812,164.39,164.38,30.42149195]
[1748585836771,43.031,164.4,164.38,30.42149195]
[1748585837165,3.6657652,164.39,164.32,555.34]
[1748585837470,36.95,164.4,164.32,30.38]
[1748585837471,3.6657652,164.38,164.32,30.38]
[1748585837671,3.6657652,164.37,164.32,147.9]
[1748585837868,3.6657652,164.36,164.32,30.38]
[1748585838067,3.6657652,164.35,164.29,30.38]
[1748585838381,3.70821979,164.34,164.3,117.54]
[1748585838574,0.04245459,164.34,164.3,117.54]
[1748585839072,6.0837,164.33,164.3,123.6246]
[1748585839776,6.12565459,164.34,164.3,123.6246]
[1748585840075,13.41,164.32,164.3,117.54]
[1748585840474,13.41,164.32,164.31,6.0842]
[1748585840864,13.41,164.32,164.3,117.5]
[1748585841071,13.41,164.32,164.3,123.5843]
[1748585841275,13.41,164.32,164.24,555.66]
[1748585841574,0.04108392,164.3,164.29,6.0849]
[1748585843171,0.04108392,164.3,164.28,30.38]
[1748585843372,0.04108392,164.3,164.29,117.46]
[1748585845478,0.04108392,164.3,164.28,30.38]
[1748585846172,0.04108392,164.3,164.28,37.00698242]
[1748585846380,30.42,164.34,164.28,43.08698242]
[1748585846583,30.42,164.34,164.31,6.62698242]
[1748585846877,30.42,164.34,164.32,30.4]
[1748585847779,30.42,164.34,164.33,6.0835]
[1748585849777,17.62144202,164.35,164.34,6.0831]
[1748585853888,17.0,164.4,164.34,6.62698242]
[1748585854788,0.03983359,164.39,164.37,6.0817]
[1748585854992,0.03983359,164.39,164.38,30.4]
[1748585855984,0.03983359,164.39,164.38,36.4816]
[1748585859493,0.03983359,164.39,164.38,30.4]
[1748585859987,0.03983359,164.39,164.38,36.4816]
[1748585865188,19.85,164.41,164.4,6.0809]
[1748585866279,14.95240686,164.42,164.41,6.0805]
[1748585871697,14.95240686,164.42,164.39,6.66785457]
[1748585872293,14.95240686,164.42,164.39,0.04087215]
[1748585872498,14.95240686,164.42,164.39,117.60087215]
[1748585872897,14.95240686,164.42,164.39,0.04087215]
[1748585873905,14.95240686,164.42,164.39,117.58087215]
[1748585874909,14.95240686,164.42,164.39,0.04087215]
[1748585875106,21.03250686,164.42,164.39,0.04087215]
[1748585876209,6.0805,164.41,164.39,0.04087215]
[1748585876406,14.95240686,164.42,164.39,0.04087215]
[1748585878008,14.95240686,164.42,164.39,6.12187215]
[1748585878506,21.03260686,164.42,164.39,0.04087215]
[1748585878709,14.95240686,164.42,164.39,0.04087215]
[1748585879812,14.95240686,164.42,164.39,6.12187215]
[1748585880914,14.95240686,164.42,164.39,0.04087215]
[1748585882019,14.95240686,164.42,164.41,6.0805]
[1748585883218,14.95240686,164.42,164.4,6.0808]
[1748585883418,14.95240686,164.42,164.39,0.04087215]
[1748585883722,14.95240686,164.42,164.39,117.48087215]
[1748585884115,14.95240686,164.42,164.39,123.56187215]
[1748585884420,14.95240686,164.42,164.39,123.54187215]
[1748585884622,14.95240686,164.42,164.39,117.46087215]
[1748585885720,14.95240686,164.42,164.41,6.0805]
[1748585885921,0.04240686,164.42,164.41,6.0805]
[1748585888626,0.04240686,164.42,164.4,6.0807]
[1748585890022,0.04240686,164.42,164.39,6.12207215]
[1748585890228,0.04240686,164.42,164.39,123.58207215]
[1748585890728,0.04240686,164.42,164.4,6.0809]
[1748585891231,0.04240686,164.42,164.39,117.50087215]
[1748585892136,0.04240686,164.42,164.4,6.0809]
[1748585892629,0.04240686,164.42,164.41,6.0805]
[1748585895435,3.74532492,164.42,164.41,6.0805]
[1748585896239,3.74532492,164.42,164.4,6.0807]
[1748585896534,0.04240686,164.42,164.4,6.0807]
[1748585898038,0.04240686,164.42,164.41,6.0805]
[1748585899438,0.04240686,164.42,164.4,6.0808]
[1748585899633,0.04240686,164.42,164.41,117.46]
[1748585900140,3.75149934,164.42,164.39,117.52087215]
[1748585900341,0.04240686,164.42,164.39,117.52087215]
[1748585900943,0.04240686,164.42,164.39,0.04087215]
[1748585901436,0.04240686,164.42,164.4,6.0806]
[1748585901742,0.04240686,164.42,164.39,0.04087215]
[1748585902036,0.04240686,164.42,164.39,117.78087215]
[1748585902839,0.04240686,164.42,164.4,6.0806]
[1748585903238,0.04240686,164.42,164.41,6.0805]
[1748585903445,0.04240686,164.42,164.41,12.70748242]
[1748585903745,14.39,164.43,164.41,6.62698242]
[1748585903936,14.39,164.43,164.42,30.34]
[1748585904135,14.39,164.43,164.42,36.4201]
[1748585905442,16.30149888,164.44,164.43,6.0798]
[1748585907143,16.30149888,164.44,164.43,68.0798]
[1748585910148,16.30149888,164.44,164.43,6.0798]
[1748585912951,16.30149888,164.44,164.43,117.56]
[1748585914347,16.30149888,164.44,164.42,30.34]
[1748585915644,22.38099888,164.44,164.42,30.34]
[1748585917748,16.30149888,164.44,164.42,30.34]
[1748585919855,19.86,164.45,164.43,6.62698242]
[1748585920153,14.74,164.47,164.43,6.62698242]
[1748585920956,14.77896953,164.47,164.46,6.0786]
[1748585921259,0.54896953,164.47,164.46,36.4786]
[1748585923061,15.54615,164.49,164.47,6.0783]
[1748585923251,15.54615,164.49,164.47,123.6383]
[1748585923954,15.58811616,164.49,164.47,123.6383]
[1748585926354,15.58811616,164.49,164.47,117.56]
[1748585927458,15.58811616,164.49,164.47,123.6383]
[1748585927650,15.58811616,164.49,164.47,117.56]
[1748585927847,15.58811616,164.49,164.46,30.4]
[1748585928051,15.58811616,164.49,164.47,117.52]
[1748585928251,15.58811616,164.49,164.46,147.92]
[1748585928654,15.58811616,164.49,164.46,30.4]
[1748585930158,21.66571616,164.49,164.46,30.4]
[1748585930465,15.58811616,164.49,164.46,30.4]
[1748585931157,3.70720677,164.48,164.46,30.4]
[1748585931363,21.66581616,164.49,164.46,30.4]
[1748585931562,3.70683214,164.48,164.46,30.4]
[1748585931758,15.58811616,164.49,164.48,6.0779]
[1748585934963,0.39811616,164.49,164.48,6.0779]
[1748585937968,0.39811616,164.49,164.47,6.12419889]
[1748585938170,0.39811616,164.49,164.47,0.04609889]
[1748585939068,0.39811616,164.49,164.48,6.0779]
[1748585942571,0.39811616,164.49,164.47,117.50609889]
[1748585942961,0.39811616,164.49,164.47,0.04609889]
[1748585944971,0.39811616,164.49,164.47,6.12429889]
[1748585945970,0.39811616,164.49,164.48,6.0779]
[1748585946167,4.10492221,164.49,164.48,6.0779]
[1748585946868,4.10492221,164.49,164.47,0.04609889]
[1748585947070,0.39811616,164.49,164.47,0.04609889]
[1748585947573,0.39811616,164.49,164.47,6.12399889]
[1748585951176,0.39811616,164.49,164.47,0.04609889]
[1748585952576,0.39811616,164.49,164.47,6.12409889]
[1748585953375,0.39811616,164.49,164.47,0.04609889]
[1748585953975,0.39811616,164.49,164.47,6.12439889]
[1748585956674,0.39811616,164.49,164.47,0.04609889]
[1748585957674,21.9569,164.51,164.47,6.67308131]
[1748585957675,15.88,164.51,164.47,6.67308131]
[1748585958076,15.88,164.51,164.5,6.62698242]
[1748585958276,15.88,164.51,164.5,36.4372]
[1748585960079,15.88,164.51,164.5,30.36]
[1748585963779,15.88,164.51,164.5,36.4372]
[1748585965274,0.03875371,164.52,164.51,6.0768]
[1748585965478,62.51,164.54,164.51,6.62698242]
[1748585965678,62.51,164.54,164.53,6.0761]
[1748585965879,6.0736,164.6,164.51,6.62698242]
[1748585966078,3.7137349,164.59,164.51,6.62698242]
[1748585966279,6.0736,164.6,164.51,6.62698242]
[1748585966481,3.71386919,164.59,164.54,6.0754]
[1748585966680,0.039545,164.57,164.55,30.36]
[1748585967582,3.71231881,164.56,164.55,30.36]
[1748585967784,3.71231881,164.56,164.54,0.04551106]
[1748585967986,6.0761,164.53,164.51,30.36]
[1748585968282,4.0282,164.56,164.48,30.36]
[1748585968483,3.71053192,164.55,164.48,30.36]
[1748585968681,4.0282,164.56,164.48,30.36]
[1748585968682,3.71053192,164.54,164.48,30.36]
[1748585968879,6.0767,164.52,164.49,0.0404699]
[1748585970588,0.04425967,164.53,164.5,6.0771]
[1748585970784,0.04425967,164.53,164.49,0.0404699]
[1748585971181,3.71036316,164.52,164.49,0.0404699]
[1748585971493,0.04425967,164.53,164.49,0.0404699]
[1748585971782,6.0768,164.51,164.49,0.0404699]
[1748585972188,3.7130734,164.5,164.49,0.0404699]
[1748585972381,3.71282951,164.5,164.49,0.0404699]
[1748585972582,9.79002951,164.5,164.49,0.0404699]
[1748585973383,9.78363563,164.5,164.49,0.0404699]
[1748585974184,3.70657618,164.5,164.49,0.0404699]
[1748585974992,9.78377618,164.5,164.49,0.0404699]
[1748585975686,3.70657618,164.5,164.49,0.0404699]
[1748585975891,0.04425967,164.53,164.49,0.0404699]
[1748585976198,3.70666401,164.52,164.49,0.0404699]
[1748585976490,0.04425967,164.53,164.49,0.0404699]
[1748585976491,3.70666401,164.51,164.49,0.0404699]
[1748585976692,0.04425967,164.53,164.49,0.0404699]
[1748585976894,3.7063135,164.52,164.49,0.0404699]
[1748585977092,3.7063135,164.51,164.49,0.0404699]
[1748585977294,6.0765,164.52,164.49,0.0404699]
[1748585977485,3.70614831,164.51,164.49,0.0404699]
[1748585977681,6.0765,164.52,164.49,0.0404699]
[1748585977895,3.70633852,164.51,164.49,0.0404699]
[1748585978091,6.0765,164.52,164.49,0.0404699]
[1748585978389,3.70510911,164.51,164.49,0.0404699]
[1748585978593,6.0769,164.51,164.49,0.0404699]
[1748585980893,6.0766,164.52,164.49,0.0404699]
[1748585981092,3.70515497,164.51,164.49,0.0404699]
[1748585981295,6.0766,164.52,164.49,0.0404699]
[1748585981504,3.70514741,164.51,164.49,0.0404699]
[1748585981696,6.0766,164.52,164.49,0.0404699]
[1748585982098,3.70343935,164.51,164.49,0.0404699]
[1748585982294,6.12035967,164.53,164.49,0.0404699]
[1748585982498,3.70326035,164.52,164.49,0.0404699]
[1748585982693,0.04425967,164.53,164.49,0.0404699]
[1748585982694,3.70326035,164.51,164.49,0.0404699]
[1748585982894,0.04425967,164.53,164.49,0.0404699]
[1748585983088,3.70341482,164.52,164.49,0.0404699]
[1748585983297,3.70341482,164.51,164.49,0.0404699]
[1748585983601,0.04425967,164.53,164.49,0.0404699]
[1748585983902,6.0768,164.51,164.49,0.0404699]
[1748585984196,3.7026072,164.5,164.49,0.0404699]
[1748585984387,0.04425967,164.53,164.49,0.0404699]
[1748585984592,6.0772,164.5,164.49,0.0404699]
[1748585984792,9.77983465,164.5,164.49,0.0404699]
[1748585984998,3.70263465,164.5,164.49,0.0404699]
[1748585986488,3.7023267,164.5,164.49,0.0404699]
[1748585987093,9.7795267,164.5,164.49,0.0404699]
[1748585987294,9.77536072,164.5,164.49,0.0404699]
[1748585988291,9.77487947,164.5,164.49,0.0404699]
[1748585988497,6.0772,164.5,164.49,0.0404699]
[1748585988797,9.77401862,164.5,164.49,0.0404699]
[1748585989795,9.77369849,164.5,164.49,0.0404699]
[1748585990397,3.69649849,164.5,164.45,147.56]
[1748585990601,3.69649849,164.49,164.45,117.28]
[1748585990802,1.9666,164.52,164.45,117.28]
[1748585991000,3.69630558,164.51,164.45,117.28]
[1748585991196,3.73632208,164.5,164.46,0.04566473]
[1748585991503,3.69630558,164.49,164.46,0.04566473]
[1748585991802,0.0400165,164.5,164.46,0.04566473]
[1748585991990,7.61452656,164.49,164.46,0.04566473]
[1748585992195,6.0783,164.47,164.46,0.04566473]
[1748585992498,9.77432656,164.47,164.46,0.04566473]
[1748585992705,9.77426395,164.47,164.46,0.04566473]
[1748585993806,9.77329522,164.47,164.46,0.04566473]
[1748585995000,6.0783,164.47,164.46,0.04566473]
[1748585995197,9.77287779,164.47,164.46,0.04566473]
[1748585996009,9.77241188,164.47,164.46,0.04566473]
[1748585996402,9.77245766,164.47,164.46,0.04566473]
[1748585999610,9.77023605,164.47,164.46,0.04566473]
[1748586000511,9.76981511,164.47,164.46,0.04566473]
[1748586002915,9.76920978,164.47,164.46,0.04566473]
[1748586003115,6.0783,164.47,164.46,0.04566473]
[1748586003316,6.078,164.48,164.46,0.04566473]
[1748586003514,0.0400165,164.5,164.46,0.04566473]
[1748586003713,3.69147258,164.49,164.46,0.04566473]
[1748586003919,0.0400165,164.5,164.46,0.04566473]
[1748586004219,3.6914988,164.49,164.46,0.04566473]
[1748586007419,3.6914988,164.49,164.46,6.12426473]
[1748586008218,3.6914988,164.49,164.46,68.12426473]
[1748586009914,3.6914988,164.49,164.47,6.0782]
[1748586010114,3.6914988,164.49,164.48,30.38]
[1748586012623,3.6914988,164.49,164.48,43.08488242]
[1748586012817,3.6914988,164.49,164.48,36.4579]
[1748586016124,3.6914988,164.49,164.48,30.38]
[1748586017321,3.6914988,164.49,164.48,36.4579]
[1748586017523,3.6914988,164.49,164.48,30.38]
[1748586019727,3.6914988,164.49,164.48,36.4579]
[1748586020425,3.6914988,164.49,164.48,30.38]
[1748586021327,3.6914988,164.49,164.48,36.4579]
[1748586022120,3.6914988,164.49,164.48,30.38]
[1748586022819,3.6914988,164.49,164.48,36.4579]
[1748586023224,3.6914988,164.49,164.48,30.38]
[1748586027337,3.6914988,164.49,164.46,147.72566473]
[1748586027933,3.6914988,164.49,164.46,153.80416473]
[1748586028122,3.6914988,164.49,164.46,147.72566473]
[1748586029132,3.6914988,164.49,164.46,30.42566473]
[1748586029528,3.69154488,164.48,164.46,30.42566473]
[1748586029727,3.69154488,164.47,164.46,0.04566473]
[1748586029932,3.69059942,164.47,164.46,0.04566473]
[1748586030129,3.69059942,164.47,164.43,30.38]
[1748586030130,6.0792,164.45,164.43,30.38]
[1748586030430,4.0284,164.48,164.43,30.38]
[1748586030636,3.69050464,164.47,164.4,147.68]
[1748586030830,6.0791,164.45,164.4,153.7606]
[1748586031027,0.0434807,164.44,164.41,0.04573749]
[1748586031434,0.0434807,164.44,164.41,6.12613749]
[1748586032337,0.0434807,164.44,164.41,0.04573749]
[1748586033334,0.0434807,164.44,164.41,6.12593749]
[1748586033538,0.0434807,164.44,164.41,0.04573749]
[1748586033926,0.0434807,164.44,164.43,6.0797]
[1748586035639,0.0434807,164.44,164.42,6.08]
[1748586036239,0.0434807,164.44,164.41,6.12603749]
[1748586037331,6.1228807,164.44,164.41,6.12603749]
[1748586037833,0.0434807,164.44,164.41,6.12603749]
[1748586038029,0.0434807,164.44,164.41,0.04573749]
[1748586038635,0.0434807,164.44,164.41,6.12593749]
[1748586038838,0.0434807,164.44,164.41,0.04573749]
[1748586039445,6.0801,164.42,164.41,0.04573749]
[1748586039640,0.0434807,164.44,164.41,0.04573749]
[1748586040239,33.6134807,164.44,164.42,6.0799]
[1748586041530,33.6134807,164.44,164.41,6.12613749]
[1748586042138,33.6134807,164.44,164.41,0.04573749]
[1748586045947,33.6134807,164.44,164.41,30.32573749]
[1748586046641,33.6134807,164.44,164.42,6.0798]
[1748586047044,33.6134807,164.44,164.43,6.0797]
[1748586047743,33.6134807,164.44,164.42,6.62698242]
[1748586047951,0.71,164.47,164.42,6.62698242]
[1748586048246,0.71,164.47,164.45,6.62698242]
[1748586048545,0.71,164.47,164.46,30.28]
[1748586048943,0.71,164.47,164.46,36.3586]
[1748586053447,0.71,164.47,164.46,30.28]
[1748586055147,0.04457058,164.48,164.46,30.28]
[1748586055852,6.12247058,164.48,164.46,30.28]
[1748586056343,6.12247058,164.48,164.45,0.03857892]
[1748586056344,6.0783,164.47,164.45,0.03857892]
[1748586056943,13.2683,164.47,164.45,0.03857892]
[1748586057946,6.0786,164.46,164.45,0.03857892]
[1748586063062,9.75319289,164.46,164.45,0.03857892]
[1748586063249,3.67459289,164.46,164.4,30.28]
[1748586063448,3.67459289,164.45,164.4,30.28]
[1748586063759,7.19,164.47,164.4,36.3608]
[1748586064057,3.67322337,164.46,164.4,30.28]
[1748586064256,6.08,164.43,164.41,0.04465764]
[1748586068359,6.0801,164.42,164.41,0.04465764]
[1748586069262,9.75424261,164.42,164.41,0.04465764]
[1748586069453,9.75424538,164.42,164.41,0.04465764]
[1748586069865,6.0809,164.4,164.39,2.11494]
[1748586070455,3.6723701,164.4,164.34,30.46]
[1748586070660,3.6723701,164.39,164.34,30.46]
[1748586070863,6.082,164.37,164.35,0.04247547]
[1748586071155,3.71801213,164.38,164.35,0.04247547]
[1748586071156,0.04496019,164.38,164.35,0.04247547]
[1748586071358,6.0823,164.36,164.35,0.04247547]
[1748586073064,6.0821,164.37,164.35,0.04247547]
[1748586073260,0.04496019,164.38,164.35,0.04247547]
[1748586074062,6.082,164.37,164.35,0.04247547]
[1748586075067,6.0823,164.36,164.35,0.04247547]
[1748586076364,0.04496019,164.38,164.31,30.46]
[1748586076556,3.66010685,164.37,164.31,30.46]
[1748586076758,32.44036019,164.38,164.31,30.46]
[1748586076969,6.0833,164.34,164.31,30.46]
[1748586077266,32.3954,164.38,164.31,30.46]
[1748586077561,0.04025728,164.34,164.31,30.50639891]
[1748586078163,0.04025728,164.34,164.31,0.04639891]
[1748586078367,37.1272397,164.34,164.24,30.46]
[1748586078566,6.0863,164.26,164.22,6.0873]
[1748586078870,3.65025373,164.32,164.22,6.0873]
[1748586079170,1.9354,164.32,164.23,6.0871]
[1748586079360,0.04410502,164.29,164.26,0.04466722]
[1748586079672,6.0856,164.28,164.26,0.04466722]
[1748586079870,0.04410502,164.29,164.26,0.04466722]
[1748586082172,6.0856,164.28,164.26,0.04466722]
[1748586082366,0.04410502,164.29,164.26,0.04466722]
[1748586083266,6.12910502,164.29,164.26,0.04466722]
[1748586084471,0.04410502,164.29,164.26,0.04466722]
[1748586085360,0.04410502,164.29,164.27,6.0854]
[1748586085774,0.04410502,164.29,164.26,0.04466722]
[1748586086163,0.04410502,164.29,164.27,6.0857]
[1748586087075,0.04410502,164.29,164.28,6.0853]
[1748586088869,0.72,164.31,164.27,124.80698242]
[1748586089074,0.72,164.31,164.27,128.97988242]
[1748586089879,0.76448565,164.31,164.27,128.97988242]
[1748586090176,0.76448565,164.31,164.29,6.0846]
[1748586090367,0.76448565,164.31,164.3,30.48]
[1748586090969,0.76448565,164.31,164.3,36.5646]
[1748586092975,6.84868565,164.31,164.26,30.52466722]
[1748586093169,0.76448565,164.31,164.26,30.52466722]
[1748586095171,6.84878565,164.31,164.26,36.61046722]
[1748586096072,0.76448565,164.31,164.27,6.0856]
[1748586096275,0.76448565,164.31,164.27,12.71258242]
[1748586098982,0.76448565,164.31,164.28,6.0852]
[1748586101785,0.76448565,164.31,164.27,68.0856]
[1748586102473,0.76448565,164.31,164.28,6.0853]
[1748586102775,0.76448565,164.31,164.27,62.0]
[1748586103680,0.76448565,164.31,164.28,6.0853]
[1748586104175,0.76448565,164.31,164.29,6.0849]
[1748586104381,0.76448565,164.31,164.27,62.0]
[1748586104978,0.76448565,164.31,164.29,6.0847]
[1748586105977,0.76448565,164.31,164.3,6.0846]
[1748586106174,0.76448565,164.31,164.3,36.7846]
[1748586106773,17.97,164.33,164.32,6.0838]
[1748586107784,17.97,164.33,164.3,30.7]
[1748586107785,17.97,164.33,164.31,0.03955029]
[1748586109174,6.0838,164.32,164.31,0.03955029]
[1748586109587,17.97,164.33,164.31,0.03955029]
[1748586109988,24.0537,164.33,164.31,0.03955029]
[1748586112581,17.97,164.33,164.31,0.03955029]
[1748586113280,17.97,164.33,164.32,6.0838]
[1748586120586,22.48324617,164.34,164.33,6.0834]
[1748586124089,7.27324617,164.34,164.33,6.0834]
[1748586124289,14.84244776,164.35,164.34,6.0831]
[1748586124590,14.84244776,164.35,164.34,36.7831]
[1748586124894,12.2975,164.41,164.36,6.082]
[1748586125094,3.6588708,164.4,164.34,37.32698242]
[1748586125389,6.6,164.43,164.36,0.04181983]
[1748586125390,0.03997614,164.39,164.36,0.04181983]
[1748586125983,0.03997614,164.39,164.37,6.0817]
[1748586126390,0.03997614,164.39,164.36,0.04181983]
[1748586126391,0.03997614,164.39,164.36,6.12401983]
[1748586127894,0.03997614,164.39,164.36,0.04181983]
[1748586132896,0.03997614,164.39,164.37,6.0819]
[1748586134901,0.03997614,164.39,164.36,6.12401983]
[1748586135299,0.03997614,164.39,164.36,0.04181983]
[1748586135506,0.03997614,164.39,164.37,6.0817]
[1748586136202,0.03997614,164.39,164.36,6.12401983]
[1748586136707,0.03997614,164.39,164.36,0.04181983]
[1748586136905,0.03997614,164.39,164.37,6.0819]
[1748586137902,0.03997614,164.39,164.38,6.0816]
[1748586140607,0.03997614,164.39,164.38,36.6816]
[1748586144012,0.03997614,164.39,164.38,30.6]
[1748586144215,0.03997614,164.39,164.36,0.04181983]
[1748586144610,6.0819,164.38,164.36,0.04181983]
[1748586147217,0.03997614,164.39,164.36,0.04181983]
[1748586147416,6.0818,164.38,164.36,0.04181983]
[1748586148017,6.082,164.37,164.36,0.04181983]
[1748586148419,9.75860435,164.37,164.36,0.04181983]
[1748586148724,9.75860414,164.37,164.36,0.04181983]
[1748586148917,9.7582585,164.37,164.36,0.04181983]
[1748586149224,3.67628247,164.37,164.36,0.04181983]
[1748586149727,10.091,164.38,164.36,0.04181983]
[1748586150525,6.082,164.37,164.36,0.04181983]
[1748586151316,10.091,164.38,164.36,0.04181983]
[1748586152125,4.0093,164.38,164.36,0.04181983]
[1748586152326,6.12127614,164.39,164.36,0.04181983]
[1748586152625,3.67796009,164.38,164.36,0.04181983]
[1748586152820,6.12127614,164.39,164.36,0.04181983]
[1748586153220,3.67848544,164.38,164.36,0.04181983]
[1748586153421,6.12127614,164.39,164.36,0.04181983]
[1748586153620,0.03997614,164.39,164.36,0.04181983]
[1748586156024,0.03997614,164.39,164.36,6.12411983]
[1748586156224,0.03997614,164.39,164.36,30.64181983]
[1748586156722,0.03997614,164.39,164.37,6.082]
[1748586157525,0.03997614,164.39,164.36,36.72401983]
[1748586158525,0.03997614,164.39,164.36,30.64181983]
[1748586160129,0.03997614,164.39,164.38,6.0816]
[1748586160520,0.03997614,164.39,164.36,30.64181983]
[1748586161726,0.03997614,164.39,164.37,6.0816]
[1748586162524,0.03997614,164.39,164.38,6.0816]
[1748586163429,0.03997614,164.39,164.37,6.0818]
[1748586165331,0.03997614,164.39,164.38,6.0816]
[1748586165632,0.03997614,164.39,164.36,30.64181983]
[1748586165834,0.03997614,164.39,164.36,36.72391983]
[1748586167139,0.03997614,164.39,164.37,6.0819]
[1748586167840,0.03997614,164.39,164.36,30.64181983]
[1748586167841,0.03997614,164.39,164.38,6.0816]
[1748586170332,0.03997614,164.39,164.36,30.64181983]
[1748586170333,0.03997614,164.39,164.37,6.0818]
[1748586171038,0.03997614,164.39,164.36,30.64181983]
[1748586172029,0.03997614,164.39,164.37,6.082]
[1748586172434,0.03997614,164.39,164.36,30.64181983]
[1748586173036,0.03997614,164.39,164.38,6.0816]
[1748586173736,0.03997614,164.39,164.37,6.0819]
[1748586174334,0.03997614,164.39,164.38,6.0816]
[1748586180342,16.46,164.42,164.41,6.0805]
[1748586180545,16.46,164.42,164.41,36.5605]
[1748586181247,16.46,164.42,164.41,30.48]
[1748586182349,16.46,164.42,164.41,36.5605]
[1748586182548,16.46,164.42,164.41,30.48]
[1748586189750,16.46,164.42,164.41,36.5605]
[1748586192148,16.46,164.42,164.41,30.48]
[1748586196758,16.46,164.42,164.4,0.04286361]
[1748586197159,6.0805,164.41,164.4,0.04286361]
[1748586197357,16.46,164.42,164.4,0.04286361]
[1748586198963,16.46,164.42,164.41,6.0805]
[1748586204360,0.04127687,164.43,164.42,6.0801]
[1748586204666,0.04127687,164.43,164.42,36.4801]
[1748586204861,0.04127687,164.43,164.42,30.4]
[1748586206762,0.04127687,164.43,164.42,30.4]
[1748586208062,0.04127687,164.43,164.42,36.4801]
[1748586211071,18.8,164.44,164.43,6.0797]